Workbook

Sheet INFORME
I2: DEFENSORÍA DEL PUEBLO
I3: INFORME DE EJECUCIÓN PRESUPUESTAL DESAGREGADO ACUMULADO
I4: VIGENCIA ACTUAL
I5: PERÍODO: 01-ENERO-2022 A 31-JULIO-2022
A8: DESCRIPCION | M8: APR. VIGENTE | N8: CDP | O8: APR. DISPONIBLE | P8: CDP MODIFICACIÓN | Q8: COMPROMISO | R8: OBLIGACION | S8: ORDEN PAGO | T8: PAGOS | U8: % EJECUCIÓN COMPROMETIDA | V8: %EJECUCIÓN OBLIGADA
A9: A | D9: PRESUPUESTO DE FUNCIONAMIENTO | M9: =+M33+M34+M35 -> 711873322516 | N9: =+N33+N34+N35 -> 5.979444881e+11 | O9: 1.139288344e+11 | P9: 0 | Q9: 4.139997505e+11 | R9: 3.107490463e+11 | S9: 3.093736242e+11 | T9: 3.092516679e+11 | U9: =Q9/M9 -> 0.5815637943 | V9: =R9/M9 -> 0.436522955
A10: B | D10: SERVICIO DE LA DEUDA PÚBLICA | M10: =+M145 -> 247291740 | N10: =+N145 -> 0 | O10: 247291740 | P10: 0 | Q10: 0 | R10: 0 | S10: 0 | T10: 0 | U10: 0 | V10: 0
A11: C | D11: PRESUPUESTO DE INVERSIÓN UNIDAD 25-02-00 | M11: =+M149+M150+M151 -> 60375679763 | N11: =+N149+N150+N151 -> 46343242051 | O11: 14032437712 | P11: 0 | Q11: 31921200936 | R11: 1.621781322e+10 | S11: 1.616869615e+10 | T11: 1.608379156e+10 | U11: 0.5287095907 | V11: 0.2686150001
A12: A+C | D12: TOTAL PRESUPUESTO UNIDAD 25-02-00 | M12: =+M9+M10+M11 -> 772496294019 | N12: =+N9+N10+N11 -> 6.442877301e+11 | O12: 1.282085639e+11 | P12: 0 | Q12: 4.459209514e+11 | R12: 3.269668595e+11 | S12: 325542320331 | T12: 325335459486 | U12: 0.5772467193 | V12: 0.4232601011
A13: C | D13: PRESUPUESTO INVERSIÓN SUBUNIDAD 25-02-00-001 | M13: =+M240 -> 14000000000 | N13: =+N240 -> 8342195895 | O13: 5657804105 | P13: 0 | Q13: 7706426042 | R13: 1829468495 | S13: 1814108495 | T13: 1783968695 | U13: 0.550459003 | V13: 0.130676321
A14: A+B+C | D14: TOTAL PRESUPUESTO DESAGREGADO | M14: =+M12+M13 -> 786496294019 | N14: =+N12+N13 -> 6.52629926e+11 | O14: 1.33866368e+11 | P14: 0 | Q14: 4.536273775e+11 | R14: 3.28796328e+11 | S14: 3.273564288e+11 | T14: 3.271194282e+11 | U14: 0.5767698855 | V14: 0.4180519737
A15: A+C | D15: APROPIACIÓN BLOQUEADA | M15: 9900099484 | N15: 0 | O15: 0 | P15: 0 | Q15: 0 | R15: 0 | S15: 0 | T15: 0 | U15: 0 | V15: 0
A16: A+B+C | D16: TOTAL PRESUPUESTO DEFENSORÍA DEL PUEBLO | M16: =+M14+M15 -> 796396393503 | N16: =+N14+N15 -> 6.52629926e+11 | O16: 1.33866368e+11 | P16: =+P14+P15 -> 0 | Q16: 4.536273775e+11 | R16: 3.28796328e+11 | S16: 3.273564288e+11 | T16: 3.271194282e+11 | U16: 0.5695999896 | V16: 0.4128551193
A18: DESCRIPCION | M18: APR. VIGENTE | N18: CDP | O18: APR. DISPONIBLE | P18: CDP MODIFICACIÓN | Q18: COMPROMISO | R18: OBLIGACION | S18: ORDEN PAGO | T18: PAGOS | U18: % EJECUCIÓN COMPROMETIDA | V18: %EJECUCIÓN OBLIGADA
A19: A-01 | D19: GASTOS DE PERSONAL | M19: =+M36 -> 237025946000 | N19: =+N36 -> 236845560147 | O19: 180385853 | P19: 0 | Q19: 130908875335 | R19: 130908875335 | S19: 130908875335 | T19: 130908875335 | U19: =Q19/M19 -> 0.55229766 | V19: =R19/M19 -> 0.55229766
A20: A-02 | D20: ADQUISICIÓN DE BIENES Y SERVICIOS | M20: =+M63 -> 80345562016 | N20: =+N63 -> 5.921226698e+10 | O20: 2.113329503e+10 | P20: 0 | Q20: 4.13365171e+10 | R20: 2.204485398e+10 | S20: 2.14993877e+10 | T20: 2.142312547e+10 | U20: 0.5144841365 | V20: 0.2743755028
A21: A-03 | D21: TRANSFERENCIAS CORRIENTES | M21: =+M115+M116 -> 391939627859 | N21: =+N115+N116 -> 3.01348311e+11 | O21: 9.059131688e+10 | P21: 0 | Q21: 2.412854031e+11 | R21: 1.57326362e+11 | S21: 1.564964062e+11 | T21: 1.564507122e+11 | U21: 0.6156187993 | V21: 0.4014045809
A22: A-08 | D22: GASTOS POR TRIBUTOS, MULTAS, SANCIONES E INTERESES DE MORA | M22: =+M140+M136+M142 -> 2562186641 | N22: =+N140+N136+N142 -> 538349989 | O22: 2023836652 | P22: 0 | Q22: 468954951 | R22: 468954951 | S22: 468954951 | T22: 468954951 | U22: 0.1830291921 | V22: 0.1830291921
A23: A | D23: TOTAL PRESUPUESTO DE FUNCIONAMIENTO | M23: =SUM(M19:M22) -> 711873322516 | N23: =SUM(N19:N22) -> 5.979444881e+11 | O23: 1.139288344e+11 | P23: 0 | Q23: 4.139997505e+11 | R23: 3.107490463e+11 | S23: 3.093736242e+11 | T23: 3.092516679e+11 | U23: 0.5815637943 | V23: 0.436522955
A24: B | D24: SERVICIO DE LA DEUDA PÚBLICA | M24: =+M10 -> 247291740 | N24: =+N10 -> 0 | O24: 247291740 | P24: 0 | Q24: 0 | R24: 0 | S24: 0 | T24: 0 | U24: 0 | V24: 0
A25: C-2502 C-2599 | D25: INVERSIÓN UNIDAD 25-02-00 | M25: =+M149+M150+M151 -> 60375679763 | N25: =+N149+N150+N151 -> 46343242051 | O25: 14032437712 | P25: 0 | Q25: 31921200936 | R25: 1.621781322e+10 | S25: 1.616869615e+10 | T25: 1.608379156e+10 | U25: 0.5287095907 | V25: 0.2686150001
A26: C-2599 | D26: INVERSIÓN SUBUNIDAD 25-02-00-001 | M26: =+M240 -> 14000000000 | N26: =+N240 -> 8342195895 | O26: 5657804105 | P26: 0 | Q26: 7706426042 | R26: 1829468495 | S26: 1814108495 | T26: 1783968695 | U26: 0.550459003 | V26: 0.130676321
A27: C | D27: TOTAL PRESUPUESTO DE INVERSIÓN | M27: =+M25+M26 -> 74375679763 | N27: =+N25+N26 -> 54685437946 | O27: 19690241817 | P27: 0 | Q27: 39627626978 | R27: 1.804728172e+10 | S27: 1.798280464e+10 | T27: 1.786776025e+10 | U27: 0.5328035603 | V27: 0.2426503096
A28: A+B+C | D28: TOTAL EJECUCIÓN PRESUPUESTO DESAGREGADO DEFENSORÍA DEL PUEBLO | M28: =+M23+M24+M27 -> 786496294019 | N28: =+N23+N24+N27 -> 6.52629926e+11 | O28: 1.33866368e+11 | P28: 0 | Q28: 4.536273775e+11 | R28: 3.28796328e+11 | S28: 3.273564288e+11 | T28: 3.271194282e+11 | U28: 0.5767698855 | V28: 0.4180519737
A29: A+C | D29: APROPIACIÓN BLOQUEADA (LEVANTAMIENTO PREVIO CONCEPTO DGPPN) | M29: =+M15 -> 9900099484 | N29: =+N15 -> 0 | O29: 0 | P29: =+P15 -> 0 | Q29: 0 | R29: 0 | S29: 0 | T29: 0 | U29: 0 | V29: 0
A30: A+B+C | D30: TOTAL PRESUPUESTO DEFENSORÍA DEL PUEBLO | M30: =+M28+M29 -> 796396393503 | N30: =+N28+N29 -> 6.52629926e+11 | O30: 1.33866368e+11 | P30: =+P28+P29 -> 0 | Q30: 4.536273775e+11 | R30: 3.28796328e+11 | S30: 3.273564288e+11 | T30: 3.271194282e+11 | U30: 0.5695999896 | V30: 0.4128551193
L31: Diferencia | M31: =+M30-'[1]INFORME DE MODIFICACIONES'!$R$14 -> 0
A32: TIPO | B32: CTA | C32: SUBC | D32: OBJG | E32: ORD | F32: SORD | G32: ITEM | H32: S. ITEM | I32: CONCEPTO | J32: FUENTE | K32: SITUACION | L32: REC. | M32: APR. VIGENTE | N32: CDP | O32: APR. DISPONIBLE | P32: CDP MODIFICACIÓN | Q32: COMPROMISO | R32: OBLIGACION | S32: ORDEN PAGO | T32: PAGOS | U32: % EJECUCIÓN COMPROMETIDA | V32: %EJECUCIÓN OBLIGADA
A33: A | I33: FUNCIONAMIENTO | J33: Nación | K33: CSF | L33: 10 | M33: 556097655516 | N33: 5.084855807e+11 | O33: 4.761207479e+10 | P33: 0 | Q33: 3.607131327e+11 | R33: 2.585579868e+11 | S33: 2.574714461e+11 | T33: 2.573564899e+11 | U33: =+IFERROR(Q33/M33,0) -> 0.6486506985 | V33: =+IFERROR(R33/M33,0) -> 0.4649506867
A34: A | I34: FUNCIONAMIENTO | J34: Nación | K34: SSF | L34: 11 | M34: 1881077000 | N34: 0 | O34: 1881077000 | P34: 0 | Q34: 0 | R34: 0 | S34: 0 | T34: 0 | U34: 0 | V34: 0
A35: A | I35: FUNCIONAMIENTO | J35: Nación | K35: SSF | L35: 16 | M35: 153894590000 | N35: 89458907365 | O35: 64435682635 | P35: 0 | Q35: 53286617811 | R35: 5.219105952e+10 | S35: 5.190217804e+10 | T35: 5.189517804e+10 | U35: 0.3462540029 | V35: 0.3391351153
A36: A | B36: 01 | I36: GASTOS DE PERSONAL | J36: Nación | K36: CSF | L36: 10 | M36: 237025946000 | N36: 236845560147 | O36: 180385853 | P36: 0 | Q36: 130908875335 | R36: 130908875335 | S36: 130908875335 | T36: 130908875335 | U36: 0.55229766 | V36: 0.55229766
A37: A | B37: 01 | C37: 01 | I37: PLANTA DE PERSONAL PERMANENTE | J37: Nación | K37: CSF | L37: 10 | M37: 237025946000 | N37: 236845560147 | O37: 180385853 | P37: 0 | Q37: 130908875335 | R37: 130908875335 | S37: 130908875335 | T37: 130908875335 | U37: 0.55229766 | V37: 0.55229766
A38: A | B38: 01 | C38: 01 | D38: 01 | I38: SALARIO | J38: Nación | K38: CSF | L38: 10 | M38: 162055267000 | N38: 162055267000 | O38: 0 | P38: 0 | Q38: 90752147345 | R38: 90752147345 | S38: 90752147345 | T38: 90752147345 | U38: 0.5600073915 | V38: 0.5600073915
A39: A | B39: 01 | C39: 01 | D39: 01 | E39: 001 | I39: FACTORES SALARIALES COMUNES | J39: Nación | K39: CSF | L39: 10 | M39: 162055267000 | N39: 162055267000 | O39: 0 | P39: 0 | Q39: 90752147345 | R39: 90752147345 | S39: 90752147345 | T39: 90752147345 | U39: 0.5600073915 | V39: 0.5600073915
A40: A | B40: 01 | C40: 01 | D40: 01 | E40: 001 | F40: 001 | I40: SUELDO BÁSICO | J40: Nación | K40: CSF | L40: 10 | M40: 125655267000 | N40: 125655267000 | O40: 0 | P40: 0 | Q40: 75472805356 | R40: 75472805356 | S40: 75472805356 | T40: 75472805356 | U40: 0.6006338386 | V40: 0.6006338386
A41: A | B41: 01 | C41: 01 | D41: 01 | E41: 001 | F41: 002 | I41: GASTOS DE REPRESENTACIÓN | J41: Nación | K41: CSF | L41: 10 | M41: 4700000000 | N41: 4700000000 | O41: 0 | P41: 0 | Q41: 2788268773 | R41: 2788268773 | S41: 2788268773 | T41: 2788268773 | U41: 0.5932486751 | V41: 0.5932486751
A42: A | B42: 01 | C42: 01 | D42: 01 | E42: 001 | F42: 006 | I42: PRIMA DE SERVICIO | J42: Nación | K42: CSF | L42: 10 | M42: 6500000000 | N42: 6500000000 | O42: 0 | P42: 0 | Q42: 6144657325 | R42: 6144657325 | S42: 6144657325 | T42: 6144657325 | U42: 0.9453318962 | V42: 0.9453318962
A43: A | B43: 01 | C43: 01 | D43: 01 | E43: 001 | F43: 007 | I43: BONIFICACIÓN POR SERVICIOS PRESTADOS | J43: Nación | K43: CSF | L43: 10 | M43: 4500000000 | N43: 4500000000 | O43: 0 | P43: 0 | Q43: 2537337012 | R43: 2537337012 | S43: 2537337012 | T43: 2537337012 | U43: 0.5638526693 | V43: 0.5638526693
A44: A | B44: 01 | C44: 01 | D44: 01 | E44: 001 | F44: 008 | I44: HORAS EXTRAS, DOMINICALES, FESTIVOS Y RECARGOS | J44: Nación | K44: CSF | L44: 10 | M44: 700000000 | N44: 700000000 | O44: 0 | P44: 0 | Q44: 253301954 | R44: 253301954 | S44: 253301954 | T44: 253301954 | U44: 0.3618599343 | V44: 0.3618599343
A45: A | B45: 01 | C45: 01 | D45: 01 | E45: 001 | F45: 009 | I45: PRIMA DE NAVIDAD | J45: Nación | K45: CSF | L45: 10 | M45: 13500000000 | N45: 13500000000 | O45: 0 | P45: 0 | Q45: 69585130 | R45: 69585130 | S45: 69585130 | T45: 69585130 | U45: 0.005154454074 | V45: 0.005154454074
A46: A | B46: 01 | C46: 01 | D46: 01 | E46: 001 | F46: 010 | I46: PRIMA DE VACACIONES | J46: Nación | K46: CSF | L46: 10 | M46: 6500000000 | N46: 6500000000 | O46: 0 | P46: 0 | Q46: 3486191795 | R46: 3486191795 | S46: 3486191795 | T46: 3486191795 | U46: 0.5363371992 | V46: 0.5363371992
A47: A | B47: 01 | C47: 01 | D47: 02 | I47: CONTRIBUCIONES INHERENTES A LA NÓMINA | J47: Nación | K47: CSF | L47: 10 | M47: 60258109000 | N47: 60077723147 | O47: 180385853 | P47: 0 | Q47: 32043212391 | R47: 32043212391 | S47: 32043212391 | T47: 32043212391 | U47: 0.5317659801 | V47: 0.5317659801
A48: A | B48: 01 | C48: 01 | D48: 02 | E48: 001 | I48: APORTES A LA SEGURIDAD SOCIAL EN PENSIONES | J48: Nación | K48: CSF | L48: 10 | M48: 17100000000 | N48: 16919839573 | O48: 180160427 | P48: 0 | Q48: 10713870535 | R48: 10713870535 | S48: 10713870535 | T48: 10713870535 | U48: 0.6265421365 | V48: 0.6265421365
A49: A | B49: 01 | C49: 01 | D49: 02 | E49: 002 | I49: APORTES A LA SEGURIDAD SOCIAL EN SALUD | J49: Nación | K49: CSF | L49: 10 | M49: 12100000000 | N49: 12099881905 | O49: 118095 | P49: 0 | Q49: 7588367506 | R49: 7588367506 | S49: 7588367506 | T49: 7588367506 | U49: 0.6271378104 | V49: 0.6271378104
A50: A | B50: 01 | C50: 01 | D50: 02 | E50: 003 | I50: AUXILIO DE CESANTÍAS | J50: Nación | K50: CSF | L50: 10 | M50: 14158109000 | N50: 14158100347 | O50: 8653 | P50: 0 | Q50: 4174864350 | R50: 4174864350 | S50: 4174864350 | T50: 4174864350 | U50: 0.294874432 | V50: 0.294874432
A51: A | B51: 01 | C51: 01 | D51: 02 | E51: 004 | I51: APORTES A CAJAS DE COMPENSACIÓN FAMILIAR | J51: Nación | K51: CSF | L51: 10 | M51: 6800000000 | N51: 6799958417 | O51: 41583 | P51: 0 | Q51: 3855066900 | R51: 3855066900 | S51: 3855066900 | T51: 3855066900 | U51: 0.5669216029 | V51: 0.5669216029
A52: A | B52: 01 | C52: 01 | D52: 02 | E52: 005 | I52: APORTES GENERALES AL SISTEMA DE RIESGOS LABORALES | J52: Nación | K52: CSF | L52: 10 | M52: 1700000000 | N52: 1699995017 | O52: 4983 | P52: 0 | Q52: 890411400 | R52: 890411400 | S52: 890411400 | T52: 890411400 | U52: 0.5237714118 | V52: 0.5237714118
A53: A | B53: 01 | C53: 01 | D53: 02 | E53: 006 | I53: APORTES AL ICBF | J53: Nación | K53: CSF | L53: 10 | M53: 5000000000 | N53: 4999968785 | O53: 31215 | P53: 0 | Q53: 2891502400 | R53: 2891502400 | S53: 2891502400 | T53: 2891502400 | U53: 0.57830048 | V53: 0.57830048
A54: A | B54: 01 | C54: 01 | D54: 02 | E54: 007 | I54: APORTES AL SENA | J54: Nación | K54: CSF | L54: 10 | M54: 850000000 | N54: 849994769 | O54: 5231 | P54: 0 | Q54: 482418900 | R54: 482418900 | S54: 482418900 | T54: 482418900 | U54: 0.5675516471 | V54: 0.5675516471
A55: A | B55: 01 | C55: 01 | D55: 02 | E55: 008 | I55: APORTES A LA ESAP | J55: Nación | K55: CSF | L55: 10 | M55: 850000000 | N55: 849994769 | O55: 5231 | P55: 0 | Q55: 482418900 | R55: 482418900 | S55: 482418900 | T55: 482418900 | U55: 0.5675516471 | V55: 0.5675516471
A56: A | B56: 01 | C56: 01 | D56: 02 | E56: 009 | I56: APORTES A ESCUELAS INDUSTRIALES E INSTITUTOS TÉCNICOS | J56: Nación | K56: CSF | L56: 10 | M56: 1700000000 | N56: 1699989565 | O56: 10435 | P56: 0 | Q56: 964291500 | R56: 964291500 | S56: 964291500 | T56: 964291500 | U56: 0.5672302941 | V56: 0.5672302941
A57: A | B57: 01 | C57: 01 | D57: 03 | I57: REMUNERACIONES NO CONSTITUTIVAS DE FACTOR SALARIAL | J57: Nación | K57: CSF | L57: 10 | M57: 14712570000 | N57: 14712570000 | O57: 0 | P57: 0 | Q57: 8113515599 | R57: 8113515599 | S57: 8113515599 | T57: 8113515599 | U57: 0.551468275 | V57: 0.551468275
A58: A | B58: 01 | C58: 01 | D58: 03 | E58: 001 | I58: PRESTACIONES SOCIALES SEGÚN DEFINICIÓN LEGAL | J58: Nación | K58: CSF | L58: 10 | M58: 9412570000 | N58: 9412570000 | O58: 0 | P58: 0 | Q58: 5133856885 | R58: 5133856885 | S58: 5133856885 | T58: 5133856885 | U58: 0.5454256261 | V58: 0.5454256261
A59: A | B59: 01 | C59: 01 | D59: 03 | E59: 001 | F59: 001 | I59: VACACIONES | J59: Nación | K59: CSF | L59: 10 | M59: 8602570000 | N59: 8602570000 | O59: 0 | P59: 0 | Q59: 4834357344 | R59: 4834357344 | S59: 4834357344 | T59: 4834357344 | U59: 0.5619666383 | V59: 0.5619666383
A60: A | B60: 01 | C60: 01 | D60: 03 | E60: 001 | F60: 002 | I60: INDEMNIZACIÓN POR VACACIONES | J60: Nación | K60: CSF | L60: 10 | M60: 810000000 | N60: 810000000 | O60: 0 | P60: 0 | Q60: 299499541 | R60: 299499541 | S60: 299499541 | T60: 299499541 | U60: 0.3697525198 | V60: 0.3697525198
A61: A | B61: 01 | C61: 01 | D61: 03 | E61: 002 | I61: PRIMA TÉCNICA NO SALARIAL | J61: Nación | K61: CSF | L61: 10 | M61: 2200000000 | N61: 2200000000 | O61: 0 | P61: 0 | Q61: 1198570305 | R61: 1198570305 | S61: 1198570305 | T61: 1198570305 | U61: 0.5448046841 | V61: 0.5448046841
A62: A | B62: 01 | C62: 01 | D62: 03 | E62: 082 | I62: PRIMA ESPECIAL DE SERVICIOS | J62: Nación | K62: CSF | L62: 10 | M62: 3100000000 | N62: 3100000000 | O62: 0 | P62: 0 | Q62: 1781088409 | R62: 1781088409 | S62: 1781088409 | T62: 1781088409 | U62: 0.5745446481 | V62: 0.5745446481
A63: A | B63: 02 | I63: ADQUISICIÓN DE BIENES Y SERVICIOS | J63: Nación | K63: CSF | L63: 10 | M63: 80345562016 | N63: 5.921226698e+10 | O63: 2.113329503e+10 | P63: 0 | Q63: 4.13365171e+10 | R63: 2.204485398e+10 | S63: 2.14993877e+10 | T63: 2.142312547e+10 | U63: 0.5144841365 | V63: 0.2743755028
A64: A | B64: 02 | C64: 01 | I64: ADQUISICIÓN DE ACTIVOS NO FINANCIEROS | J64: Nación | K64: CSF | L64: 10 | M64: 12145000000 | N64: 479938605 | O64: 11665061395 | P64: 0 | Q64: 152938605 | R64: 46419364 | S64: 46419364 | T64: 46419364 | U64: 0.0125927217 | V64: 0.003822096665
A65: A | B65: 02 | C65: 01 | D65: 01 | I65: ACTIVOS FIJOS | J65: Nación | K65: CSF | L65: 10 | M65: 12145000000 | N65: 479938605 | O65: 11665061395 | P65: 0 | Q65: 152938605 | R65: 46419364 | S65: 46419364 | T65: 46419364 | U65: =+IFERROR(Q65/M65,0) -> 0.0125927217 | V65: =+IFERROR(R65/M65,0) -> 0.003822096665
A66: A | B66: 02 | C66: 01 | D66: 01 | E66: 004 | I66: MAQUINARIA Y EQUIPO | J66: Nación | K66: CSF | L66: 10 | M66: 12025000000 | N66: 359938605 | O66: 11665061395 | P66: 0 | Q66: 32938605 | R66: 0 | S66: 0 | T66: 0 | U66: 0.002739177131 | V66: 0
A67: A | B67: 02 | C67: 01 | D67: 01 | E67: 004 | F67: 007 | I67: EQUIPO Y APARATOS DE RADIO, TELEVISIÓN Y COMUNICACIONES | J67: Nación | K67: CSF | L67: 10 | M67: 1915000000 | N67: 249938605 | O67: 1665061395 | P67: 0 | Q67: 32938605 | R67: 0 | S67: 0 | T67: 0 | U67: 0.01720031593 | V67: 0
A68: A | B68: 02 | C68: 01 | D68: 01 | E68: 004 | F68: 008 | I68: APARATOS MÉDICOS, INSTRUMENTOS ÓPTICOS Y DE PRECISIÓN, RELOJES | J68: Nación | K68: CSF | L68: 10 | M68: 110000000 | N68: 110000000 | O68: 0 | P68: 0 | Q68: 0 | R68: 0 | S68: 0 | T68: 0 | U68: 0 | V68: 0
A69: A | B69: 02 | C69: 01 | D69: 01 | E69: 004 | F69: 009 | I69: EQUIPO DE TRANSPORTE | J69: Nación | K69: CSF | L69: 10 | M69: 10000000000 | N69: 0 | O69: 10000000000 | P69: 0 | Q69: 0 | R69: 0 | S69: 0 | T69: 0 | U69: 0 | V69: 0
A70: A | B70: 02 | C70: 01 | D70: 01 | E70: 006 | I70: OTROS ACTIVOS FIJOS | J70: Nación | K70: CSF | L70: 10 | M70: 120000000 | N70: 120000000 | O70: 0 | P70: 0 | Q70: 120000000 | R70: 46419364 | S70: 46419364 | T70: 46419364 | U70: 1 | V70: 0.3868280333
A71: A | B71: 02 | C71: 01 | D71: 01 | E71: 006 | F71: 002 | I71: PRODUCTOS DE LA PROPIEDAD INTELECTUAL | J71: Nación | K71: CSF | L71: 10 | M71: 120000000 | N71: 120000000 | O71: 0 | P71: 0 | Q71: 120000000 | R71: 46419364 | S71: 46419364 | T71: 46419364 | U71: 1 | V71: 0.3868280333
A72: A | B72: 02 | C72: 02 | I72: ADQUISICIONES DIFERENTES DE ACTIVOS | J72: Nación | K72: CSF | L72: 10 | M72: 68200562016 | N72: 5.873232838e+10 | O72: 9468233639 | P72: 0 | Q72: 4.118357849e+10 | R72: 2.199843462e+10 | S72: 2.145296834e+10 | T72: 2.137670611e+10 | U72: 0.6038598111 | V72: 0.3225550342
A73: A | B73: 02 | C73: 02 | D73: 01 | I73: MATERIALES Y SUMINISTROS | J73: Nación | K73: CSF | L73: 10 | M73: 7767248452 | N73: 4696006172 | O73: 3071242280 | P73: 0 | Q73: 3128128348 | R73: 2524489261 | S73: 2524489261 | T73: 2519871944 | U73: 0.4027331387 | V73: 0.3250171894
A74: A | B74: 02 | C74: 02 | D74: 01 | E74: 002 | I74: PRODUCTOS ALIMENTICIOS, BEBIDAS Y TABACO; TEXTILES, PRENDAS DE VESTIR Y PRODUCTOS DE CUERO | J74: Nación | K74: CSF | L74: 10 | M74: 128860000 | N74: 106734547 | O74: 22125453 | P74: 0 | Q74: 106734547 | R74: 39449985 | S74: 39449985 | T74: 39449985 | U74: 0.8282985178 | V74: 0.3061460888
A75: A | B75: 02 | C75: 02 | D75: 01 | E75: 002 | F75: 003 | I75: PRODUCTOS DE MOLINERÍA, ALMIDONES Y PRODUCTOS DERIVADOS DEL ALMIDÓN; OTROS PRODUCTOS ALIMENTICIOS | J75: Nación | K75: CSF | L75: 10 | M75: 50000000 | N75: 43794285 | O75: 6205715 | P75: 0 | Q75: 43794285 | R75: 39179285 | S75: 39179285 | T75: 39179285 | U75: 0.8758857 | V75: 0.7835857
A76: A | B76: 02 | C76: 02 | D76: 01 | E76: 002 | F76: 007 | I76: ARTÍCULOS TEXTILES (EXCEPTO PRENDAS DE VESTIR) | J76: Nación | K76: CSF | L76: 10 | M76: 390700 | N76: 270700 | O76: 120000 | P76: 0 | Q76: 270700 | R76: 270700 | S76: 270700 | T76: 270700 | U76: 0.6928589711 | V76: 0.6928589711
A77: A | B77: 02 | C77: 02 | D77: 01 | E77: 002 | F77: 008 | I77: DOTACIÓN (PRENDAS DE VESTIR Y CALZADO) | J77: Nación | K77: CSF | L77: 10 | M77: 78469300 | N77: 62669562 | O77: 15799738 | P77: 0 | Q77: 62669562 | R77: 0 | S77: 0 | T77: 0 | U77: 0.798650708 | V77: 0
A78: A | B78: 02 | C78: 02 | D78: 01 | E78: 003 | I78: OTROS BIENES TRANSPORTABLES (EXCEPTO PRODUCTOS METÁLICOS, MAQUINARIA Y EQUIPO) | J78: Nación | K78: CSF | L78: 10 | M78: 1815326820 | N78: 1535205010 | O78: 280121810.4 | P78: 0 | Q78: 497093310.7 | R78: 199524515.5 | S78: 199524515.5 | T78: 194907198.5 | U78: 0.2738313042 | V78: 0.1099110713
A79: A | B79: 02 | C79: 02 | D79: 01 | E79: 003 | F79: 002 | I79: PASTA O PULPA, PAPEL Y PRODUCTOS DE PAPEL; IMPRESOS Y ARTÍCULOS RELACIONADOS | J79: Nación | K79: CSF | L79: 10 | M79: 168750000 | N79: 158671674 | O79: 10078326 | P79: 0 | Q79: 48671674 | R79: 23680824 | S79: 23680824 | T79: 23680824 | U79: 0.2884247348 | V79: 0.1403308089
A80: A | B80: 02 | C80: 02 | D80: 01 | E80: 003 | F80: 003 | I80: PRODUCTOS DE HORNOS DE COQUE; PRODUCTOS DE REFINACIÓN DE PETRÓLEO Y COMBUSTIBLE NUCLEAR | J80: Nación | K80: CSF | L80: 10 | M80: 283681820 | N80: 281018441.6 | O80: 2663378.42 | P80: 0 | Q80: 281018441.6 | R80: 97587541.58 | S80: 97587541.58 | T80: 92970224.58 | U80: 0.9906113884 | V80: 0.3440035092
A81: A | B81: 02 | C81: 02 | D81: 01 | E81: 003 | F81: 005 | I81: OTROS PRODUCTOS QUÍMICOS; FIBRAS ARTIFICIALES (O FIBRAS INDUSTRIALES HECHAS POR EL HOMBRE) | J81: Nación | K81: CSF | L81: 10 | M81: 13900000 | N81: 13887450 | O81: 12550 | P81: 0 | Q81: 13887450 | R81: 13887450 | S81: 13887450 | T81: 13887450 | U81: 0.9990971223 | V81: 0.9990971223
A82: A | B82: 02 | C82: 02 | D82: 01 | E82: 003 | F82: 006 | I82: PRODUCTOS DE CAUCHO Y PLÁSTICO | J82: Nación | K82: CSF | L82: 10 | M82: 25140000 | N82: 1050000 | O82: 24090000 | P82: 0 | Q82: 1050000 | R82: 1050000 | S82: 1050000 | T82: 1050000 | U82: 0.04176610979 | V82: 0.04176610979
A83: A | B83: 02 | C83: 02 | D83: 01 | E83: 003 | F83: 007 | I83: VIDRIO Y PRODUCTOS DE VIDRIO Y OTROS PRODUCTOS NO METÁLICOS N.C.P. | J83: Nación | K83: CSF | L83: 10 | M83: 30000000 | N83: 15000000 | O83: 15000000 | P83: 0 | Q83: 0 | R83: 0 | S83: 0 | T83: 0 | U83: 0 | V83: 0
A84: A | B84: 02 | C84: 02 | D84: 01 | E84: 003 | F84: 008 | I84: OTROS BIENES TRANSPORTABLES N.C.P. | J84: Nación | K84: CSF | L84: 10 | M84: 1293855000 | N84: 1065577444 | O84: 228277556 | P84: 0 | Q84: 152465745.1 | R84: 63318699.91 | S84: 63318699.91 | T84: 63318699.91 | U84: 0.1178383552 | V84: 0.04893801849
A85: A | B85: 02 | C85: 02 | D85: 01 | E85: 004 | I85: PRODUCTOS METÁLICOS Y PAQUETES DE SOFTWARE | J85: Nación | K85: CSF | L85: 10 | M85: 5823061632 | N85: 3054066615 | O85: 2768995017 | P85: 0 | Q85: 2524300490 | R85: 2285514760 | S85: 2285514760 | T85: 2285514760 | U85: 0.4335005621 | V85: 0.392493658
A86: A | B86: 02 | C86: 02 | D86: 01 | E86: 004 | F86: 004 | I86: MAQUINARIA PARA USOS ESPECIALES | J86: Nación | K86: CSF | L86: 10 | M86: 52145000 | N86: 26246241 | O86: 25898759 | P86: 0 | Q86: 0 | R86: 0 | S86: 0 | T86: 0 | U86: 0 | V86: 0
A87: A | B87: 02 | C87: 02 | D87: 01 | E87: 004 | F87: 005 | I87: MAQUINARIA DE OFICINA, CONTABILIDAD E INFORMÁTICA | J87: Nación | K87: CSF | L87: 10 | M87: 2441965714 | N87: 8469456 | O87: 2433496258 | P87: 0 | Q87: 8469456 | R87: 1766815 | S87: 1766815 | T87: 1766815 | U87: 0.003468294396 | V87: 0.0007235216243
A88: A | B88: 02 | C88: 02 | D88: 01 | E88: 004 | F88: 006 | I88: MAQUINARIA Y APARATOS ELÉCTRICOS | J88: Nación | K88: CSF | L88: 10 | M88: 252000000 | N88: 0 | O88: 252000000 | P88: 0 | Q88: 0 | R88: 0 | S88: 0 | T88: 0 | U88: 0 | V88: 0
A89: A | B89: 02 | C89: 02 | D89: 01 | E89: 004 | F89: 007 | I89: EQUIPO Y APARATOS DE RADIO, TELEVISIÓN Y COMUNICACIONES | J89: Nación | K89: CSF | L89: 10 | M89: 3076950918 | N89: 3019350918 | O89: 57600000 | P89: 0 | Q89: 2515831034 | R89: 2283747945 | S89: 2283747945 | T89: 2283747945 | U89: 0.8176376879 | V89: 0.7422113665
A90: A | B90: 02 | C90: 02 | D90: 02 | I90: ADQUISICIÓN DE SERVICIOS | J90: Nación | K90: CSF | L90: 10 | M90: 60433313564 | N90: 5.403632221e+10 | O90: 6396991359 | P90: 0 | Q90: 3.805545015e+10 | R90: 1.947394535e+10 | S90: 1.892847907e+10 | T90: 1.885683417e+10 | U90: 0.6297098057 | V90: 0.3222385834
A91: A | B91: 02 | C91: 02 | D91: 02 | E91: 005 | I91: SERVICIOS DE LA CONSTRUCCIÓN | J91: Nación | K91: CSF | L91: 10 | M91: 2028297681 | N91: 2021677024 | O91: 6620657 | P91: 0 | Q91: 2021677024 | R91: 21677024 | S91: 21677024 | T91: 21677024 | U91: 0.9967358554 | V91: 0.01068729911
A92: A | B92: 02 | C92: 02 | D92: 02 | E92: 005 | F92: 004 | I92: SERVICIOS DE CONSTRUCCIÓN | J92: Nación | K92: CSF | L92: 10 | M92: 2028297681 | N92: 2021677024 | O92: 6620657 | P92: 0 | Q92: 2021677024 | R92: 21677024 | S92: 21677024 | T92: 21677024 | U92: 0.9967358554 | V92: 0.01068729911
A93: A | B93: 02 | C93: 02 | D93: 02 | E93: 006 | I93: SERVICIOS DE ALOJAMIENTO; SERVICIOS DE SUMINISTRO DE COMIDAS Y BEBIDAS; SERVICIOS DE TRANSPORTE; Y SERVICIOS DE DISTRIBUCIÓN DE ELECTRICIDAD, GAS Y AGUA | J93: Nación | K93: CSF | L93: 10 | M93: 6903079819 | N93: 5804570816 | O93: 1098509003 | P93: 0 | Q93: 2201394922 | R93: 1872462328 | S93: 1864497381 | T93: 1864497381 | U93: 0.3189004009 | V93: 0.2712502792
A94: A | B94: 02 | C94: 02 | D94: 02 | E94: 006 | F94: 003 | I94: ALOJAMIENTO; SERVICIOS DE SUMINISTROS DE COMIDAS Y BEBIDAS | J94: Nación | K94: CSF | L94: 10 | M94: 528035476 | N94: 472654292 | O94: 55381184 | P94: 0 | Q94: 348812757 | R94: 282329846 | S94: 278523355 | T94: 278523355 | U94: 0.6605858372 | V94: 0.5346796926
A95: A | B95: 02 | C95: 02 | D95: 02 | E95: 006 | F95: 004 | I95: SERVICIOS DE TRANSPORTE DE PASAJEROS | J95: Nación | K95: CSF | L95: 10 | M95: 2080494343 | N95: 2068444343 | O95: 12050000 | P95: 0 | Q95: 875252135 | R95: 673081492 | S95: 669918492 | T95: 669918492 | U95: 0.4206943114 | V95: 0.3235199818
A96: A | B96: 02 | C96: 02 | D96: 02 | E96: 006 | F96: 007 | I96: SERVICIOS DE APOYO AL TRANSPORTE | J96: Nación | K96: CSF | L96: 10 | M96: 216950000 | N96: 183232225 | O96: 33717775 | P96: 0 | Q96: 131750945 | R96: 80949663 | S96: 79954207 | T96: 79954207 | U96: 0.6072871399 | V96: 0.3731258954
A97: A | B97: 02 | C97: 02 | D97: 02 | E97: 006 | F97: 008 | I97: SERVICIOS POSTALES Y DE MENSAJERÍA | J97: Nación | K97: CSF | L97: 10 | M97: 2762000000 | N97: 1964639956 | O97: 797360044 | P97: 0 | Q97: 231639956 | R97: 222162198 | S97: 222162198 | T97: 222162198 | U97: =+IFERROR(Q97/M97,0) -> 0.08386674728 | V97: =+IFERROR(R97/M97,0) -> 0.08043526358
A98: A | B98: 02 | C98: 02 | D98: 02 | E98: 006 | F98: 009 | I98: SERVICIOS DE DISTRIBUCIÓN DE ELECTRICIDAD, GAS Y AGUA (POR CUENTA PROPIA) | J98: Nación | K98: CSF | L98: 10 | M98: 1315600000 | N98: 1115600000 | O98: 200000000 | P98: 0 | Q98: 613939129 | R98: 613939129 | S98: 613939129 | T98: 613939129 | U98: 0.4666609372 | V98: 0.4666609372
A99: A | B99: 02 | C99: 02 | D99: 02 | E99: 007 | I99: SERVICIOS FINANCIEROS Y SERVICIOS CONEXOS, SERVICIOS INMOBILIARIOS Y SERVICIOS DE LEASING | J99: Nación | K99: CSF | L99: 10 | M99: 2624236411 | N99: 2546121450 | O99: 78114960.76 | P99: 0 | Q99: 2209133330 | R99: 1326777765 | S99: 1303713670 | T99: 1303713670 | U99: 0.8418194797 | V99: 0.505586219
A100: A | B100: 02 | C100: 02 | D100: 02 | E100: 007 | F100: 001 | I100: SERVICIOS FINANCIEROS Y SERVICIOS CONEXOS | J100: Nación | K100: CSF | L100: 10 | M100: 275000000 | N100: 258413616 | O100: 16586384 | P100: 0 | Q100: 257913616 | R100: 0 | S100: 0 | T100: 0 | U100: 0.9378676945 | V100: 0
A101: A | B101: 02 | C101: 02 | D101: 02 | E101: 007 | F101: 002 | I101: SERVICIOS INMOBILIARIOS | J101: Nación | K101: CSF | L101: 10 | M101: 1894153872 | N101: 1890877256 | O101: 3276615.76 | P101: 0 | Q101: 1587377295 | R101: 1060296124 | S101: 1037232029 | T101: 1037232029 | U101: 0.8380403084 | V101: 0.5597729621
A102: A | B102: 02 | C102: 02 | D102: 02 | E102: 007 | F102: 003 | I102: SERVICIOS DE ARRENDAMIENTO O ALQUILER SIN OPERARIO | J102: Nación | K102: CSF | L102: 10 | M102: 455082539 | N102: 396830578 | O102: 58251961 | P102: 0 | Q102: 363842419 | R102: 266481641 | S102: 266481641 | T102: 266481641 | U102: 0.7995086338 | V102: 0.5855677117
A103: A | B103: 02 | C103: 02 | D103: 02 | E103: 008 | I103: SERVICIOS PRESTADOS A LAS EMPRESAS Y SERVICIOS DE PRODUCCIÓN | J103: Nación | K103: CSF | L103: 10 | M103: 39737645760 | N103: 34849647008 | O103: 4887998752 | P103: 0 | Q103: 24410050813 | R103: 1.215661883e+10 | S103: 1.169066478e+10 | T103: 1.161920138e+10 | U103: 0.614280246 | V103: 0.3059219688
A104: A | B104: 02 | C104: 02 | D104: 02 | E104: 008 | F104: 002 | I104: SERVICIOS JURÍDICOS Y CONTABLES | J104: Nación | K104: CSF | L104: 10 | M104: 11894706965 | N104: 8638419300 | O104: 3256287665 | P104: 0 | Q104: 6449853466 | R104: 3885720121 | S104: 3880720121 | T104: 3858720121 | U104: 0.5422456799 | V104: 0.3266764059
A105: A | B105: 02 | C105: 02 | D105: 02 | E105: 008 | F105: 003 | I105: OTROS SERVICIOS PROFESIONALES, CIENTÍFICOS Y TÉCNICOS | J105: Nación | K105: CSF | L105: 10 | M105: 11760161359 | N105: 10449320142 | O105: 1310841217 | P105: 0 | Q105: 6304923328 | R105: 3930882795 | S105: 3922382795 | T105: 3888582795 | U105: 0.5361255799 | V105: 0.3342541548
A106: A | B106: 02 | C106: 02 | D106: 02 | E106: 008 | F106: 004 | I106: SERVICIOS DE TELECOMUNICACIONES, TRANSMISIÓN Y SUMINISTRO DE INFORMACIÓN | J106: Nación | K106: CSF | L106: 10 | M106: 4855750000 | N106: 4853714315 | O106: 2035685 | P106: 0 | Q106: 2250317737 | R106: 1458000258 | S106: 1407387732 | T106: 1391724331 | U106: 0.463433607 | V106: 0.3002626285
A107: A | B107: 02 | C107: 02 | D107: 02 | E107: 008 | F107: 005 | I107: SERVICIOS DE SOPORTE | J107: Nación | K107: CSF | L107: 10 | M107: 9487774868 | N107: 9187543337 | O107: 300231531 | P107: 0 | Q107: 8604645741 | R107: 2706546646 | S107: 2304705126 | T107: 2304705126 | U107: 0.9069192578 | V107: 0.2852667442
A108: A | B108: 02 | C108: 02 | D108: 02 | E108: 008 | F108: 007 | I108: SERVICIOS DE MANTENIMIENTO, REPARACIÓN E INSTALACIÓN (EXCEPTO SERVICIOS DE CONSTRUCCIÓN) | J108: Nación | K108: CSF | L108: 10 | M108: 1739252568 | N108: 1720649914 | O108: 18602654 | P108: 0 | Q108: 800310541 | R108: 175469006 | S108: 175469006 | T108: 175469006 | U108: 0.4601462466 | V108: 0.1008875935
A109: A | B109: 02 | C109: 02 | D109: 02 | E109: 009 | I109: SERVICIOS PARA LA COMUNIDAD, SOCIALES Y PERSONALES | J109: Nación | K109: CSF | L109: 10 | M109: 6591802050 | N109: 6316904739 | O109: 274897311 | P109: 0 | Q109: 4930934236 | R109: 2412898075 | S109: 2412898075 | T109: 2412898075 | U109: 0.7480403991 | V109: 0.3660452873
A110: A | B110: 02 | C110: 02 | D110: 02 | E110: 009 | F110: 002 | I110: SERVICIOS DE EDUCACIÓN | J110: Nación | K110: CSF | L110: 10 | M110: 355000000 | N110: 355000000 | O110: 0 | P110: 0 | Q110: 0 | R110: 0 | S110: 0 | T110: 0 | U110: 0 | V110: 0
A111: A | B111: 02 | C111: 02 | D111: 02 | E111: 009 | F111: 003 | I111: SERVICIOS PARA EL CUIDADO DE LA SALUD HUMANA Y SERVICIOS SOCIALES | J111: Nación | K111: CSF | L111: 10 | M111: 350000000 | N111: 349993689 | O111: 6311 | P111: 0 | Q111: 105243689 | R111: 40758000 | S111: 40758000 | T111: 40758000 | U111: 0.3006962543 | V111: 0.1164514286
A112: A | B112: 02 | C112: 02 | D112: 02 | E112: 009 | F112: 004 | I112: SERVICIOS DE ALCANTARILLADO, RECOLECCIÓN, TRATAMIENTO Y DISPOSICIÓN DE DESECHOS Y OTROS SERVICIOS DE SANEAMIENTO AMBIENTAL | J112: Nación | K112: CSF | L112: 10 | M112: 312355000 | N112: 302355000 | O112: 10000000 | P112: 0 | Q112: 126134497 | R112: 126134497 | S112: 126134497 | T112: 126134497 | U112: 0.4038177618 | V112: 0.4038177618
A113: A | B113: 02 | C113: 02 | D113: 02 | E113: 009 | F113: 007 | I113: OTROS SERVICIOS | J113: Nación | K113: CSF | L113: 10 | M113: 5574447050 | N113: 5309556050 | O113: 264891000 | P113: 0 | Q113: 4699556050 | R113: 2246005578 | S113: 2246005578 | T113: 2246005578 | U113: 0.8430533123 | V113: 0.402910918
A114: A | B114: 02 | C114: 02 | D114: 02 | E114: 010 | I114: VIÁTICOS DE LOS FUNCIONARIOS EN COMISIÓN | J114: Nación | K114: CSF | L114: 10 | M114: 2548251843 | N114: 2497401168 | O114: 50850675 | P114: 0 | Q114: 2282259820 | R114: 1683511337 | S114: 1635028145 | T114: 1634846638 | U114: 0.8956178434 | V114: 0.6606534364
A115: A | B115: 03 | I115: TRANSFERENCIAS CORRIENTES | J115: Nación | K115: CSF | L115: 10 | M115: 238045037859 | N115: 2.118894036e+11 | O115: 2.615563425e+10 | P115: 0 | Q115: 1.879987853e+11 | R115: 1.051353025e+11 | S115: 1.045942282e+11 | T115: 1.045555341e+11 | U115: 0.7897614123 | V115: 0.4416613909
A116: A | B116: 03 | I116: TRANSFERENCIAS CORRIENTES | J116: Nación | K116: SSF | L116: 16 | M116: 153894590000 | N116: 89458907365 | O116: 64435682635 | P116: 0 | Q116: 53286617811 | R116: 5.219105952e+10 | S116: 5.190217804e+10 | T116: 5.189517804e+10 | U116: 0.3462540029 | V116: 0.3391351153
A117: A | B117: 03 | C117: 03 | I117: A ENTIDADES DEL GOBIERNO | J117: Nación | K117: CSF | L117: 10 | M117: 236324136080 | N117: 2.102030005e+11 | O117: 2.612113561e+10 | P117: 0 | Q117: 1.87473524e+11 | R117: 1.046823291e+11 | S117: 1.041412548e+11 | T117: 1.041025607e+11 | U117: 0.7932897887 | V117: 0.4429608032
A118: A | B118: 03 | C118: 03 | I118: A ENTIDADES DEL GOBIERNO | J118: Nación | K118: SSF | L118: 16 | M118: 153894590000 | N118: 89458907365 | O118: 64435682635 | P118: 0 | Q118: 53286617811 | R118: 5.219105952e+10 | S118: 5.190217804e+10 | T118: 5.189517804e+10 | U118: 0.3462540029 | V118: 0.3391351153
A119: A | B119: 03 | C119: 03 | D119: 01 | I119: A ÓRGANOS DEL PGN | J119: Nación | K119: CSF | L119: 10 | M119: 236324136080 | N119: 2.102030005e+11 | O119: 2.612113561e+10 | P119: 0 | Q119: 1.87473524e+11 | R119: 1.046823291e+11 | S119: 1.041412548e+11 | T119: 1.041025607e+11 | U119: 0.7932897887 | V119: 0.4429608032
A120: A | B120: 03 | C120: 03 | D120: 01 | I120: A ÓRGANOS DEL PGN | J120: Nación | K120: SSF | L120: 16 | M120: 153894590000 | N120: 89458907365 | O120: 64435682635 | P120: 0 | Q120: 53286617811 | R120: 5.219105952e+10 | S120: 5.190217804e+10 | T120: 5.189517804e+10 | U120: 0.3462540029 | V120: 0.3391351153
A121: A | B121: 03 | C121: 03 | D121: 01 | E121: 007 | I121: DEFENSORÍA PÚBLICA (LEY 24 DE 1992) | J121: Nación | K121: CSF | L121: 10 | M121: 235997136080 | N121: 2.098760045e+11 | O121: 2.612113157e+10 | P121: 0 | Q121: 1.871899003e+11 | R121: 1.045873305e+11 | S121: 1.040462562e+11 | T121: 1.040075621e+11 | U121: 0.7931871692 | V121: 0.4431720328
A122: A | B122: 03 | C122: 03 | D122: 01 | E122: 008 | I122: FONDO PARA LA DEFENSA DE LOS DERECHOS E INTERESES COLECTIVOS -LEY 472 DE 1998. | J122: Nación | K122: SSF | L122: 16 | M122: 153325000000 | N122: 89458907365 | O122: 63866092635 | P122: 0 | Q122: 53286617811 | R122: 5.219105952e+10 | S122: 5.190217804e+10 | T122: 5.189517804e+10 | U122: 0.3475403086 | V122: 0.3403949749
A123: A | B123: 03 | C123: 03 | D123: 01 | E123: 061 | I123: FONDO ESPECIAL COMISIÓN NACIONAL DE BÚSQUEDA (ART. 18 LEY 971 DE 2005) | J123: Nación | K123: SSF | L123: 16 | M123: 569590000 | N123: 0 | O123: 569590000 | P123: 0 | Q123: 0 | R123: 0 | S123: 0 | T123: 0 | U123: 0 | V123: 0
A124: A | B124: 03 | C124: 03 | D124: 01 | E124: 068 | I124: COMISIÓN DE BÚSQUEDA DE PERSONAS DESAPARECIDAS LEY 589 DE 2000 | J124: Nación | K124: CSF | L124: 10 | M124: 327000000 | N124: 326995963 | O124: 4037 | P124: 0 | Q124: 283623677 | R124: 94998613 | S124: 94998613 | T124: 94998613 | U124: 0.8673506942 | V124: 0.2905156361
A125: A | B125: 03 | C125: 03 | D125: 01 | E125: 999 | I125: OTRAS TRANSFERENCIAS - DISTRIBUCIÓN PREVIO CONCEPTO DGPPN | J125: Nación | K125: CSF | L125: 10 | M125: 0 | N125: 0 | O125: 0 | P125: 0 | Q125: 0 | R125: 0 | S125: 0 | T125: 0 | U125: 0 | V125: 0
A126: A | B126: 03 | C126: 04 | I126: PRESTACIONES PARA CUBRIR RIESGOS SOCIALES | J126: Nación | K126: CSF | L126: 10 | M126: 1650685000 | N126: 1650685000 | O126: 0 | P126: 0 | Q126: 525261315 | R126: 452973386 | S126: 452973386 | T126: 452973386 | U126: 0.3182080863 | V126: 0.2744154009
A127: A | B127: 03 | C127: 04 | D127: 02 | I127: PRESTACIONES SOCIALES RELACIONADAS CON EL EMPLEO | J127: Nación | K127: CSF | L127: 10 | M127: 1650685000 | N127: 1650685000 | O127: 0 | P127: 0 | Q127: 525261315 | R127: 452973386 | S127: 452973386 | T127: 452973386 | U127: 0.3182080863 | V127: 0.2744154009
A128: A | B128: 03 | C128: 04 | D128: 02 | E128: 012 | I128: INCAPACIDADES Y LICENCIAS DE MATERNIDAD Y PATERNIDAD (NO DE PENSIONES) | J128: Nación | K128: CSF | L128: 10 | M128: 1650685000 | N128: 1650685000 | O128: 0 | P128: 0 | Q128: 525261315 | R128: 452973386 | S128: 452973386 | T128: 452973386 | U128: 0.3182080863 | V128: 0.2744154009
A129: A | B129: 03 | C129: 04 | D129: 02 | E129: 012 | F129: 001 | I129: INCAPACIDADES (NO DE PENSIONES) | J129: Nación | K129: CSF | L129: 10 | M129: 850685000 | N129: 850685000 | O129: 0 | P129: 0 | Q129: 361021743 | R129: 297580911 | S129: 297580911 | T129: 297580911 | U129: =+IFERROR(Q129/M129,0) -> 0.4243894544 | V129: =+IFERROR(R129/M129,0) -> 0.3498132811
A130: A | B130: 03 | C130: 04 | D130: 02 | E130: 012 | F130: 002 | I130: LICENCIAS DE MATERNIDAD Y PATERNIDAD (NO DE PENSIONES) | J130: Nación | K130: CSF | L130: 10 | M130: 800000000 | N130: 800000000 | O130: 0 | P130: 0 | Q130: 164239572 | R130: 155392475 | S130: 155392475 | T130: 155392475 | U130: 0.205299465 | V130: 0.1942405937
A131: A | B131: 03 | C131: 10 | I131: SENTENCIAS Y CONCILIACIONES | J131: Nación | K131: CSF | L131: 10 | M131: 70216779 | N131: 35718137 | O131: 34498642 | P131: 0 | Q131: 0 | R131: 0 | S131: 0 | T131: 0 | U131: 0 | V131: 0
A132: A | B132: 03 | C132: 10 | D132: 01 | I132: FALLOS NACIONALES | J132: Nación | K132: CSF | L132: 10 | M132: 70216779 | N132: 35718137 | O132: 34498642 | P132: 0 | Q132: 0 | R132: 0 | S132: 0 | T132: 0 | U132: 0 | V132: 0
A133: A | B133: 03 | C133: 10 | D133: 01 | E133: 001 | I133: SENTENCIAS | J133: Nación | K133: CSF | L133: 10 | M133: 70216779 | N133: 35718137 | O133: 34498642 | P133: 0 | Q133: 0 | R133: 0 | S133: 0 | T133: 0 | U133: 0 | V133: 0
A134: A | B134: 08 | I134: GASTOS POR TRIBUTOS, MULTAS, SANCIONES E INTERESES DE MORA | J134: Nación | K134: CSF | L134: 10 | M134: 681109641 | N134: 538349989 | O134: 142759652 | P134: 0 | Q134: 468954951 | R134: 468954951 | S134: 468954951 | T134: 468954951 | U134: 0.688516096 | V134: 0.688516096
A135: A | B135: 08 | I135: GASTOS POR TRIBUTOS, MULTAS, SANCIONES E INTERESES DE MORA | J135: Nación | K135: SSF | L135: 11 | M135: 1881077000 | N135: 0 | O135: 1881077000 | P135: 0 | Q135: 0 | R135: 0 | S135: 0 | T135: 0 | U135: 0 | V135: 0
A136: A | B136: 08 | C136: 01 | I136: IMPUESTOS | J136: Nación | K136: CSF | L136: 10 | M136: 485000000 | N136: 485000000 | O136: 0 | P136: 0 | Q136: 466638557 | R136: 466638557 | S136: 466638557 | T136: 466638557 | U136: 0.9621413546 | V136: 0.9621413546
A137: A | B137: 08 | C137: 01 | D137: 02 | I137: IMPUESTOS TERRITORIALES | J137: Nación | K137: CSF | L137: 10 | M137: 485000000 | N137: 485000000 | O137: 0 | P137: 0 | Q137: 466638557 | R137: 466638557 | S137: 466638557 | T137: 466638557 | U137: 0.9621413546 | V137: 0.9621413546
A138: A | B138: 08 | C138: 01 | D138: 02 | E138: 001 | I138: IMPUESTO PREDIAL Y SOBRETASA AMBIENTAL | J138: Nación | K138: CSF | L138: 10 | M138: 470000000 | N138: 470000000 | O138: 0 | P138: 0 | Q138: 452262022 | R138: 452262022 | S138: 452262022 | T138: 452262022 | U138: 0.9622596213 | V138: 0.9622596213
A139: A | B139: 08 | C139: 01 | D139: 02 | E139: 006 | I139: IMPUESTO SOBRE VEHÍCULOS AUTOMOTORES | J139: Nación | K139: CSF | L139: 10 | M139: 15000000 | N139: 15000000 | O139: 0 | P139: 0 | Q139: 14376535 | R139: 14376535 | S139: 14376535 | T139: 14376535 | U139: 0.9584356667 | V139: 0.9584356667
A140: A | B140: 08 | C140: 04 | I140: CONTRIBUCIONES | J140: Nación | K140: SSF | L140: 11 | M140: 1881077000 | N140: 0 | O140: 1881077000 | P140: 0 | Q140: 0 | R140: 0 | S140: 0 | T140: 0 | U140: 0 | V140: 0
A141: A | B141: 08 | C141: 04 | D141: 01 | I141: CUOTA DE FISCALIZACIÓN Y AUDITAJE | J141: Nación | K141: SSF | L141: 11 | M141: 1881077000 | N141: 0 | O141: 1881077000 | P141: 0 | Q141: 0 | R141: 0 | S141: 0 | T141: 0 | U141: 0 | V141: 0
A142: A | B142: 08 | C142: 05 | I142: MULTAS, SANCIONES E INTERESES DE MORA | J142: Nación | K142: CSF | L142: 10 | M142: 196109641 | N142: 53349989 | O142: 142759652 | P142: 0 | Q142: 2316394 | R142: 2316394 | S142: 2316394 | T142: 2316394 | U142: 0.01181172934 | V142: 0.01181172934
A143: A | B143: 08 | C143: 05 | D143: 02 | I143: INTERESES DE MORA | J143: Nación | K143: CSF | L143: 10 | M143: 196109641 | N143: 53349989 | O143: 142759652 | P143: 0 | Q143: 2316394 | R143: 2316394 | S143: 2316394 | T143: 2316394 | U143: 0.01181172934 | V143: 0.01181172934
A144: A | B144: 08 | C144: 05 | D144: 02 | E144: 003 | I144: SENTENCIAS | J144: Nación | K144: CSF | L144: 10 | M144: 196109641 | N144: 53349989 | O144: 142759652 | P144: 0 | Q144: 2316394 | R144: 2316394 | S144: 2316394 | T144: 2316394 | U144: 0.01181172934 | V144: 0.01181172934
A145: B | I145: SERVICIO DE LA DEUDA PÚBLICA | J145: Nación | K145: CSF | L145: 11 | M145: 247291740 | N145: 0 | O145: 247291740 | P145: 0 | Q145: 0 | R145: 0 | S145: 0 | T145: 0 | U145: 0 | V145: 0
A146: B | B146: 10 | I146: SERVICIO DE LA DEUDA PÚBLICA INTERNA | J146: Nación | K146: CSF | L146: 11 | M146: 247291740 | N146: 0 | O146: 247291740 | P146: 0 | Q146: 0 | R146: 0 | S146: 0 | T146: 0 | U146: 0 | V146: 0
A147: B | B147: 10 | C147: 04 | I147: FONDO DE CONTINGENCIAS | J147: Nación | K147: CSF | L147: 11 | M147: 247291740 | N147: 0 | O147: 247291740 | P147: 0 | Q147: 0 | R147: 0 | S147: 0 | T147: 0 | U147: 0 | V147: 0
A148: B | B148: 10 | C148: 04 | D148: 01 | I148: APORTES AL FONDO DE CONTINGENCIAS | J148: Nación | K148: CSF | L148: 11 | M148: 247291740 | N148: 0 | O148: 247291740 | P148: 0 | Q148: 0 | R148: 0 | S148: 0 | T148: 0 | U148: 0 | V148: 0
A149: C | I149: INVERSION | J149: Nación | K149: CSF | L149: 11 | M149: 20000000000 | N149: 13879458288 | O149: 6120541712 | P149: 0 | Q149: 12138732346 | R149: 6405468162 | S149: 6382269362 | T149: 6351708545 | U149: 0.6069366173 | V149: 0.3202734081
A150: C | I150: INVERSION | J150: Nación | K150: CSF | L150: 13 | M150: 37735679763 | N150: 31844133575 | O150: 5891546188 | P150: 0 | Q150: 19162818402 | R150: 9812345062 | S150: 9786426788 | T150: 9732083013 | U150: 0.5078169659 | V150: 0.2600283107
A151: C | I151: INVERSION | J151: Nación | K151: CSF | L151: 15 | M151: 2640000000 | N151: 619650188 | O151: 2020349812 | P151: 0 | Q151: 619650188 | R151: 0 | S151: 0 | T151: 0 | U151: 0.2347159803 | V151: 0
A152: C | B152: 2502 | I152: PROMOCIÓN, PROTECCIÓN Y DEFENSA DE LOS DERECHOS HUMANOS Y EL DERECHO INTERNACIONAL HUMANITARIO | J152: Nación | K152: CSF | L152: 11 | M152: 15500000000 | N152: 13224176821 | O152: 2275823179 | P152: 0 | Q152: 11626456146 | R152: 6298434829 | S152: 6275236029 | T152: 6244675212 | U152: 0.7500939449 | V152: 0.4063506341
A153: C | B153: 2502 | I153: PROMOCIÓN, PROTECCIÓN Y DEFENSA DE LOS DERECHOS HUMANOS Y EL DERECHO INTERNACIONAL HUMANITARIO | J153: Nación | K153: CSF | L153: 13 | M153: 26019181301 | N153: 21844133575 | O153: 4175047726 | P153: 0 | Q153: 19162818402 | R153: 9812345062 | S153: 9786426788 | T153: 9732083013 | U153: 0.7364881385 | V153: 0.3771196699
A154: C | B154: 2502 | I154: PROMOCIÓN, PROTECCIÓN Y DEFENSA DE LOS DERECHOS HUMANOS Y EL DERECHO INTERNACIONAL HUMANITARIO | J154: Nación | K154: CSF | L154: 15 | M154: 2640000000 | N154: 619650188 | O154: 2020349812 | P154: 0 | Q154: 619650188 | R154: 0 | S154: 0 | T154: 0 | U154: 0.2347159803 | V154: 0
A155: C | B155: 2502 | C155: 1000 | I155: INTERSUBSECTORIAL GOBIERNO | J155: Nación | K155: CSF | L155: 11 | M155: 15500000000 | N155: 13224176821 | O155: 2275823179 | P155: 0 | Q155: 11626456146 | R155: 6298434829 | S155: 6275236029 | T155: 6244675212 | U155: 0.7500939449 | V155: 0.4063506341
A156: C | B156: 2502 | C156: 1000 | I156: INTERSUBSECTORIAL GOBIERNO | J156: Nación | K156: CSF | L156: 13 | M156: 26019181301 | N156: 21844133575 | O156: 4175047726 | P156: 0 | Q156: 19162818402 | R156: 9812345062 | S156: 9786426788 | T156: 9732083013 | U156: 0.7364881385 | V156: 0.3771196699
A157: C | B157: 2502 | C157: 1000 | I157: INTERSUBSECTORIAL GOBIERNO | J157: Nación | K157: CSF | L157: 15 | M157: 2640000000 | N157: 619650188 | O157: 2020349812 | P157: 0 | Q157: 619650188 | R157: 0 | S157: 0 | T157: 0 | U157: 0.2347159803 | V157: 0
A158: C | B158: 2502 | C158: 1000 | D158: 25 | I158: FORTALECIMIENTO DE LA ATENCIÓN, PROMOCIÓN, DIVULGACIÓN, PROTECCIÓN Y DEFENSA DE DERECHOS HUMANOS A LA POBLACIÓN Y GRUPOS DE INTERÉS EN EL TERRITORIO NACIONAL NACIONAL | J158: Nación | K158: CSF | L158: 11 | M158: 10500000000 | N158: 9777244998 | O158: 722755002 | P158: 0 | Q158: 8528059797 | R158: 4784922002 | S158: 4764709432 | T158: 4735776521 | U158: 0.8121961711 | V158: 0.4557068573
A159: C | B159: 2502 | C159: 1000 | D159: 25 | I159: FORTALECIMIENTO DE LA ATENCIÓN, PROMOCIÓN, DIVULGACIÓN, PROTECCIÓN Y DEFENSA DE DERECHOS HUMANOS A LA POBLACIÓN Y GRUPOS DE INTERÉS EN EL TERRITORIO NACIONAL NACIONAL | J159: Nación | K159: CSF | L159: 13 | M159: 10500000000 | N159: 8702436337 | O159: 1797563663 | P159: 0 | Q159: 6887614166 | R159: 3461755299 | S159: 3456713883 | T159: 3440496442 | U159: 0.6559632539 | V159: 0.3296909809
A160: C | B160: 2502 | C160: 1000 | D160: 25 | I160: FORTALECIMIENTO DE LA ATENCIÓN, PROMOCIÓN, DIVULGACIÓN, PROTECCIÓN Y DEFENSA DE DERECHOS HUMANOS A LA POBLACIÓN Y GRUPOS DE INTERÉS EN EL TERRITORIO NACIONAL NACIONAL | J160: Nación | K160: CSF | L160: 15 | M160: 2640000000 | N160: 619650188 | O160: 2020349812 | P160: 0 | Q160: 619650188 | R160: 0 | S160: 0 | T160: 0 | U160: 0.2347159803 | V160: 0
A161: C | B161: 2502 | C161: 1000 | D161: 25 | E161: 0 | F161: 2502002 | I161: SERVICIO DE ASISTENCIA TÉCNICA PARA ATENCIÓN, ORIENTACIÓN Y ASESORÍA EN MATERIA DE DERECHOS HUMANOS, EL DERECHO INTERNACIONAL HUMANITARIO Y EN ESCENARIOS DE PAZ | J161: Nación | K161: CSF | L161: 11 | M161: 4335026770 | N161: 3712691170 | O161: 622335600.5 | P161: 0 | Q161: 3006884930 | R161: 1722326688 | S161: 1711412413 | T161: 1687648724 | U161: =+IFERROR(Q161/M161,0) -> 0.6936254582 | V161: =+IFERROR(R161/M161,0) -> 0.3973047409
A162: C | B162: 2502 | C162: 1000 | D162: 25 | E162: 0 | F162: 2502003 | I162: SERVICIO DE EDUCACIÓN INFORMAL EN MATERIA DE DERECHOS HUMANOS Y DERECHO INTERNACIONAL HUMANITARIO | J162: Nación | K162: CSF | L162: 11 | M162: 1796418873 | N162: 1737069473 | O162: 59349400.48 | P162: 0 | Q162: 1535801566 | R162: 668994677.1 | S162: 668994677.1 | T162: 663825455.1 | U162: 0.8549239761 | V162: 0.3724046139
A163: C | B163: 2502 | C163: 1000 | D163: 25 | E163: 0 | F163: 2502004 | I163: SERVICIO DE DIVULGACIÓN DE LOS DERECHOS HUMANOS Y DEL DERECHO INTERNACIONAL HUMANITARIO DE LA POBLACIÓN | J163: Nación | K163: CSF | L163: 11 | M163: 655805936.2 | N163: 651805936 | O163: 4000000.17 | P163: 0 | Q163: 633805936 | R163: 301960796.1 | S163: 301960796.1 | T163: 301960796.1 | U163: 0.9664534903 | V163: 0.4604423037
A164: C | B164: 2502 | C164: 1000 | D164: 25 | E164: 0 | F164: 2502011 | I164: DOCUMENTOS DE SEGUIMIENTO | J164: Nación | K164: CSF | L164: 11 | M164: 2927069486 | N164: 2925199485 | O164: 1870000.85 | P164: 0 | Q164: 2642567365 | R164: 1695466504 | S164: 1686168209 | T164: 1686168209 | U164: 0.9028030861 | V164: 0.5792368484
A165: C | B165: 2502 | C165: 1000 | D165: 25 | E165: 0 | F165: 2502006 | I165: DOCUMENTOS DE INVESTIGACIÓN | J165: Nación | K165: CSF | L165: 11 | M165: 785678934 | N165: 750478934 | O165: 35200000.01 | P165: 0 | Q165: 709000000 | R165: 396173336.6 | S165: 396173336.6 | T165: 396173336.6 | U165: 0.9024042383 | V165: 0.5042432977
A166: C | B166: 2502 | C166: 1000 | D166: 25 | E166: 0 | F166: 2502006 | I166: DOCUMENTOS DE INVESTIGACIÓN | J166: Nación | K166: CSF | L166: 13 | M166: 1285678934 | N166: 960868566 | O166: 324810368 | P166: 0 | Q166: 827711540 | R166: 469551760.7 | S166: 469551760.7 | T166: 466895316.7 | U166: 0.6437933438 | V166: 0.3652169669
A167: C | B167: 2502 | C167: 1000 | D167: 25 | E167: 0 | F167: 2502011 | I167: DOCUMENTOS DE SEGUIMIENTO | J167: Nación | K167: CSF | L167: 13 | M167: 2927069486 | N167: 2522268386 | O167: 404801099.9 | P167: 0 | Q167: 1823800279 | R167: 1055982019 | S167: 1055982019 | T167: 1051150996 | U167: 0.6230806231 | V167: 0.3607642469
A168: C | B168: 2502 | C168: 1000 | D168: 25 | E168: 0 | F168: 2502004 | I168: SERVICIO DE DIVULGACIÓN DE LOS DERECHOS HUMANOS Y DEL DERECHO INTERNACIONAL HUMANITARIO DE LA POBLACIÓN | J168: Nación | K168: CSF | L168: 13 | M168: 715805936.2 | N168: 634008936 | O168: 81797000.17 | P168: 0 | Q168: 452941553 | R168: 168997332 | S168: 168392811 | T168: 168392811 | U168: 0.63277144 | V168: 0.2360937839
A169: C | B169: 2502 | C169: 1000 | D169: 25 | E169: 0 | F169: 2502003 | I169: SERVICIO DE EDUCACIÓN INFORMAL EN MATERIA DE DERECHOS HUMANOS Y DERECHO INTERNACIONAL HUMANITARIO | J169: Nación | K169: CSF | L169: 13 | M169: 1736418873 | N169: 1358397425 | O169: 378021448.5 | P169: 0 | Q169: 1249485503 | R169: 688108027 | S169: 686598223 | T169: 684331113 | U169: 0.7195760897 | V169: 0.3962799746
A170: C | B170: 2502 | C170: 1000 | D170: 25 | E170: 0 | F170: 2502002 | I170: SERVICIO DE ASISTENCIA TÉCNICA PARA ATENCIÓN, ORIENTACIÓN Y ASESORÍA EN MATERIA DE DERECHOS HUMANOS, EL DERECHO INTERNACIONAL HUMANITARIO Y EN ESCENARIOS DE PAZ | J170: Nación | K170: CSF | L170: 13 | M170: 3835026770 | N170: 3226893024 | O170: 608133746.5 | P170: 0 | Q170: 2533675291 | R170: 1079116161 | S170: 1076189070 | T170: 1069726206 | U170: 0.6606669112 | V170: 0.2813842577
A171: C | B171: 2502 | C171: 1000 | D171: 25 | E171: 0 | F171: 2502002 | I171: SERVICIO DE ASISTENCIA TÉCNICA PARA ATENCIÓN, ORIENTACIÓN Y ASESORÍA EN MATERIA DE DERECHOS HUMANOS, EL DERECHO INTERNACIONAL HUMANITARIO Y EN ESCENARIOS DE PAZ | J171: Nación | K171: CSF | L171: 15 | M171: 289949588 | N171: 0 | O171: 289949588 | P171: 0 | Q171: 0 | R171: 0 | S171: 0 | T171: 0 | U171: 0 | V171: 0
A172: C | B172: 2502 | C172: 1000 | D172: 25 | E172: 0 | F172: 2502003 | I172: SERVICIO DE EDUCACIÓN INFORMAL EN MATERIA DE DERECHOS HUMANOS Y DERECHO INTERNACIONAL HUMANITARIO | J172: Nación | K172: CSF | L172: 15 | M172: 871671031 | N172: 459033909 | O172: 412637122.1 | P172: 0 | Q172: 459033909 | R172: 0 | S172: 0 | T172: 0 | U172: 0.5266137025 | V172: 0
A173: C | B173: 2502 | C173: 1000 | D173: 25 | E173: 0 | F173: 2502004 | I173: SERVICIO DE DIVULGACIÓN DE LOS DERECHOS HUMANOS Y DEL DERECHO INTERNACIONAL HUMANITARIO DE LA POBLACIÓN | J173: Nación | K173: CSF | L173: 15 | M173: 564888349.7 | N173: 143616279 | O173: 421272070.7 | P173: 0 | Q173: 143616279 | R173: 0 | S173: 0 | T173: 0 | U173: 0.2542383448 | V173: 0
A174: C | B174: 2502 | C174: 1000 | D174: 25 | E174: 0 | F174: 2502011 | I174: DOCUMENTOS DE SEGUIMIENTO | J174: Nación | K174: CSF | L174: 15 | M174: 715948899.3 | N174: 0 | O174: 715948899.3 | P174: 0 | Q174: 0 | R174: 0 | S174: 0 | T174: 0 | U174: 0 | V174: 0
A175: C | B175: 2502 | C175: 1000 | D175: 25 | E175: 0 | F175: 2502006 | I175: DOCUMENTOS DE INVESTIGACIÓN | J175: Nación | K175: CSF | L175: 15 | M175: 197542132 | N175: 17000000 | O175: 180542132 | P175: 0 | Q175: 17000000 | R175: 0 | S175: 0 | T175: 0 | U175: 0.086057591 | V175: 0
A176: C | B176: 2502 | C176: 1000 | D176: 25 | E176: 0 | F176: 2502002 | G176: 02 | I176: ADQUISICIÓN DE BIENES Y SERVICIOS - SERVICIO DE ASISTENCIA TÉCNICA PARA ATENCIÓN, ORIENTACIÓN Y ASESORÍA EN MATERIA DE DERECHOS HUMANOS, EL DERECHO INTERNACIONAL HUMANITARIO Y EN ESCENARIOS DE PAZ - FORTALECIMIENTO DE LA ATENCIÓN, PROMOCIÓN, DIVULGAC | J176: Nación | K176: CSF | L176: 11 | M176: 4335026770 | N176: 3712691170 | O176: 622335600.5 | P176: 0 | Q176: 3006884930 | R176: 1722326688 | S176: 1711412413 | T176: 1687648724 | U176: 0.6936254582 | V176: 0.3973047409
A177: C | B177: 2502 | C177: 1000 | D177: 25 | E177: 0 | F177: 2502003 | G177: 02 | I177: ADQUISICIÓN DE BIENES Y SERVICIOS - SERVICIO DE EDUCACIÓN INFORMAL EN MATERIA DE DERECHOS HUMANOS Y DERECHO INTERNACIONAL HUMANITARIO - FORTALECIMIENTO DE LA ATENCIÓN, PROMOCIÓN, DIVULGACIÓN, PROTECCIÓN Y DEFENSA DE DERECHOS HUMANOS A LA POBLACIÓN Y | J177: Nación | K177: CSF | L177: 11 | M177: 1796418873 | N177: 1737069473 | O177: 59349400.48 | P177: 0 | Q177: 1535801566 | R177: 668994677.1 | S177: 668994677.1 | T177: 663825455.1 | U177: 0.8549239761 | V177: 0.3724046139
A178: C | B178: 2502 | C178: 1000 | D178: 25 | E178: 0 | F178: 2502004 | G178: 02 | I178: ADQUISICIÓN DE BIENES Y SERVICIOS - SERVICIO DE DIVULGACIÓN DE LOS DERECHOS HUMANOS Y DEL DERECHO INTERNACIONAL HUMANITARIO DE LA POBLACIÓN - FORTALECIMIENTO DE LA ATENCIÓN, PROMOCIÓN, DIVULGACIÓN, PROTECCIÓN Y DEFENSA DE DERECHOS HUMANOS A LA POBLAC | J178: Nación | K178: CSF | L178: 11 | M178: 655805936.2 | N178: 651805936 | O178: 4000000.17 | P178: 0 | Q178: 633805936 | R178: 301960796.1 | S178: 301960796.1 | T178: 301960796.1 | U178: 0.9664534903 | V178: 0.4604423037
A179: C | B179: 2502 | C179: 1000 | D179: 25 | E179: 0 | F179: 2502006 | G179: 02 | I179: ADQUISICIÓN DE BIENES Y SERVICIOS - DOCUMENTOS DE INVESTIGACIÓN - FORTALECIMIENTO DE LA ATENCIÓN, PROMOCIÓN, DIVULGACIÓN, PROTECCIÓN Y DEFENSA DE DERECHOS HUMANOS A LA POBLACIÓN Y GRUPOS DE INTERÉS EN EL TERRITORIO NACIONAL NACIONAL | J179: Nación | K179: CSF | L179: 11 | M179: 785678934 | N179: 750478934 | O179: 35200000.01 | P179: 0 | Q179: 709000000 | R179: 396173336.6 | S179: 396173336.6 | T179: 396173336.6 | U179: 0.9024042383 | V179: 0.5042432977
A180: C | B180: 2502 | C180: 1000 | D180: 25 | E180: 0 | F180: 2502011 | G180: 02 | I180: ADQUISICIÓN DE BIENES Y SERVICIOS - DOCUMENTOS DE SEGUIMIENTO - FORTALECIMIENTO DE LA ATENCIÓN, PROMOCIÓN, DIVULGACIÓN, PROTECCIÓN Y DEFENSA DE DERECHOS HUMANOS A LA POBLACIÓN Y GRUPOS DE INTERÉS EN EL TERRITORIO NACIONAL NACIONAL | J180: Nación | K180: CSF | L180: 11 | M180: 2927069486 | N180: 2925199485 | O180: 1870000.85 | P180: 0 | Q180: 2642567365 | R180: 1695466504 | S180: 1686168209 | T180: 1686168209 | U180: 0.9028030861 | V180: 0.5792368484
A181: C | B181: 2502 | C181: 1000 | D181: 25 | E181: 0 | F181: 2502011 | G181: 02 | I181: ADQUISICIÓN DE BIENES Y SERVICIOS - DOCUMENTOS DE SEGUIMIENTO - FORTALECIMIENTO DE LA ATENCIÓN, PROMOCIÓN, DIVULGACIÓN, PROTECCIÓN Y DEFENSA DE DERECHOS HUMANOS A LA POBLACIÓN Y GRUPOS DE INTERÉS EN EL TERRITORIO NACIONAL NACIONAL | J181: Nación | K181: CSF | L181: 13 | M181: 2927069486 | N181: 2522268386 | O181: 404801099.9 | P181: 0 | Q181: 1823800279 | R181: 1055982019 | S181: 1055982019 | T181: 1051150996 | U181: 0.6230806231 | V181: 0.3607642469
A182: C | B182: 2502 | C182: 1000 | D182: 25 | E182: 0 | F182: 2502006 | G182: 02 | I182: ADQUISICIÓN DE BIENES Y SERVICIOS - DOCUMENTOS DE INVESTIGACIÓN - FORTALECIMIENTO DE LA ATENCIÓN, PROMOCIÓN, DIVULGACIÓN, PROTECCIÓN Y DEFENSA DE DERECHOS HUMANOS A LA POBLACIÓN Y GRUPOS DE INTERÉS EN EL TERRITORIO NACIONAL NACIONAL | J182: Nación | K182: CSF | L182: 13 | M182: 1285678934 | N182: 960868566 | O182: 324810368 | P182: 0 | Q182: 827711540 | R182: 469551760.7 | S182: 469551760.7 | T182: 466895316.7 | U182: 0.6437933438 | V182: 0.3652169669
A183: C | B183: 2502 | C183: 1000 | D183: 25 | E183: 0 | F183: 2502004 | G183: 02 | I183: ADQUISICIÓN DE BIENES Y SERVICIOS - SERVICIO DE DIVULGACIÓN DE LOS DERECHOS HUMANOS Y DEL DERECHO INTERNACIONAL HUMANITARIO DE LA POBLACIÓN - FORTALECIMIENTO DE LA ATENCIÓN, PROMOCIÓN, DIVULGACIÓN, PROTECCIÓN Y DEFENSA DE DERECHOS HUMANOS A LA POBLAC | J183: Nación | K183: CSF | L183: 13 | M183: 715805936.2 | N183: 634008936 | O183: 81797000.17 | P183: 0 | Q183: 452941553 | R183: 168997332 | S183: 168392811 | T183: 168392811 | U183: 0.63277144 | V183: 0.2360937839
A184: C | B184: 2502 | C184: 1000 | D184: 25 | E184: 0 | F184: 2502003 | G184: 02 | I184: ADQUISICIÓN DE BIENES Y SERVICIOS - SERVICIO DE EDUCACIÓN INFORMAL EN MATERIA DE DERECHOS HUMANOS Y DERECHO INTERNACIONAL HUMANITARIO - FORTALECIMIENTO DE LA ATENCIÓN, PROMOCIÓN, DIVULGACIÓN, PROTECCIÓN Y DEFENSA DE DERECHOS HUMANOS A LA POBLACIÓN Y | J184: Nación | K184: CSF | L184: 13 | M184: 1736418873 | N184: 1358397425 | O184: 378021448.5 | P184: 0 | Q184: 1249485503 | R184: 688108027 | S184: 686598223 | T184: 684331113 | U184: 0.7195760897 | V184: 0.3962799746
A185: C | B185: 2502 | C185: 1000 | D185: 25 | E185: 0 | F185: 2502002 | G185: 02 | I185: ADQUISICIÓN DE BIENES Y SERVICIOS - SERVICIO DE ASISTENCIA TÉCNICA PARA ATENCIÓN, ORIENTACIÓN Y ASESORÍA EN MATERIA DE DERECHOS HUMANOS, EL DERECHO INTERNACIONAL HUMANITARIO Y EN ESCENARIOS DE PAZ - FORTALECIMIENTO DE LA ATENCIÓN, PROMOCIÓN, DIVULGAC | J185: Nación | K185: CSF | L185: 13 | M185: 3835026770 | N185: 3226893024 | O185: 608133746.5 | P185: 0 | Q185: 2533675291 | R185: 1079116161 | S185: 1076189070 | T185: 1069726206 | U185: 0.6606669112 | V185: 0.2813842577
A186: C | B186: 2502 | C186: 1000 | D186: 25 | E186: 0 | F186: 2502002 | G186: 02 | I186: ADQUISICIÓN DE BIENES Y SERVICIOS - SERVICIO DE ASISTENCIA TÉCNICA PARA ATENCIÓN, ORIENTACIÓN Y ASESORÍA EN MATERIA DE DERECHOS HUMANOS, EL DERECHO INTERNACIONAL HUMANITARIO Y EN ESCENARIOS DE PAZ - FORTALECIMIENTO DE LA ATENCIÓN, PROMOCIÓN, DIVULGAC | J186: Nación | K186: CSF | L186: 15 | M186: 289949588 | N186: 0 | O186: 289949588 | P186: 0 | Q186: 0 | R186: 0 | S186: 0 | T186: 0 | U186: 0 | V186: 0
A187: C | B187: 2502 | C187: 1000 | D187: 25 | E187: 0 | F187: 2502003 | G187: 02 | I187: ADQUISICIÓN DE BIENES Y SERVICIOS - SERVICIO DE EDUCACIÓN INFORMAL EN MATERIA DE DERECHOS HUMANOS Y DERECHO INTERNACIONAL HUMANITARIO - FORTALECIMIENTO DE LA ATENCIÓN, PROMOCIÓN, DIVULGACIÓN, PROTECCIÓN Y DEFENSA DE DERECHOS HUMANOS A LA POBLACIÓN Y | J187: Nación | K187: CSF | L187: 15 | M187: 871671031 | N187: 459033909 | O187: 412637122.1 | P187: 0 | Q187: 459033909 | R187: 0 | S187: 0 | T187: 0 | U187: 0.5266137025 | V187: 0
A188: C | B188: 2502 | C188: 1000 | D188: 25 | E188: 0 | F188: 2502004 | G188: 02 | I188: ADQUISICIÓN DE BIENES Y SERVICIOS - SERVICIO DE DIVULGACIÓN DE LOS DERECHOS HUMANOS Y DEL DERECHO INTERNACIONAL HUMANITARIO DE LA POBLACIÓN - FORTALECIMIENTO DE LA ATENCIÓN, PROMOCIÓN, DIVULGACIÓN, PROTECCIÓN Y DEFENSA DE DERECHOS HUMANOS A LA POBLAC | J188: Nación | K188: CSF | L188: 15 | M188: 564888349.7 | N188: 143616279 | O188: 421272070.7 | P188: 0 | Q188: 143616279 | R188: 0 | S188: 0 | T188: 0 | U188: 0.2542383448 | V188: 0
A189: C | B189: 2502 | C189: 1000 | D189: 25 | E189: 0 | F189: 2502006 | G189: 02 | I189: ADQUISICIÓN DE BIENES Y SERVICIOS - DOCUMENTOS DE INVESTIGACIÓN - FORTALECIMIENTO DE LA ATENCIÓN, PROMOCIÓN, DIVULGACIÓN, PROTECCIÓN Y DEFENSA DE DERECHOS HUMANOS A LA POBLACIÓN Y GRUPOS DE INTERÉS EN EL TERRITORIO NACIONAL NACIONAL | J189: Nación | K189: CSF | L189: 15 | M189: 197542132 | N189: 17000000 | O189: 180542132 | P189: 0 | Q189: 17000000 | R189: 0 | S189: 0 | T189: 0 | U189: 0.086057591 | V189: 0
A190: C | B190: 2502 | C190: 1000 | D190: 25 | E190: 0 | F190: 2502011 | G190: 02 | I190: ADQUISICIÓN DE BIENES Y SERVICIOS - DOCUMENTOS DE SEGUIMIENTO - FORTALECIMIENTO DE LA ATENCIÓN, PROMOCIÓN, DIVULGACIÓN, PROTECCIÓN Y DEFENSA DE DERECHOS HUMANOS A LA POBLACIÓN Y GRUPOS DE INTERÉS EN EL TERRITORIO NACIONAL NACIONAL | J190: Nación | K190: CSF | L190: 15 | M190: 715948899.3 | N190: 0 | O190: 715948899.3 | P190: 0 | Q190: 0 | R190: 0 | S190: 0 | T190: 0 | U190: 0 | V190: 0
A191: C | B191: 2502 | C191: 1000 | D191: 25 | E191: 0 | I191: FORTALECIMIENTO DE LA ATENCIÓN, PROMOCIÓN, DIVULGACIÓN, PROTECCIÓN Y DEFENSA DE DERECHOS HUMANOS A LA POBLACIÓN Y GRUPOS DE INTERÉS EN EL TERRITORIO NACIONAL NACIONAL | J191: Nación | K191: CSF | L191: 11 | M191: 10500000000 | N191: 9777244998 | O191: 722755002 | P191: 0 | Q191: 8528059797 | R191: 4784922002 | S191: 4764709432 | T191: 4735776521 | U191: 0.8121961711 | V191: 0.4557068573
A192: C | B192: 2502 | C192: 1000 | D192: 25 | E192: 0 | I192: FORTALECIMIENTO DE LA ATENCIÓN, PROMOCIÓN, DIVULGACIÓN, PROTECCIÓN Y DEFENSA DE DERECHOS HUMANOS A LA POBLACIÓN Y GRUPOS DE INTERÉS EN EL TERRITORIO NACIONAL NACIONAL | J192: Nación | K192: CSF | L192: 13 | M192: 10500000000 | N192: 8702436337 | O192: 1797563663 | P192: 0 | Q192: 6887614166 | R192: 3461755299 | S192: 3456713883 | T192: 3440496442 | U192: 0.6559632539 | V192: 0.3296909809
A193: C | B193: 2502 | C193: 1000 | D193: 25 | E193: 0 | I193: FORTALECIMIENTO DE LA ATENCIÓN, PROMOCIÓN, DIVULGACIÓN, PROTECCIÓN Y DEFENSA DE DERECHOS HUMANOS A LA POBLACIÓN Y GRUPOS DE INTERÉS EN EL TERRITORIO NACIONAL NACIONAL | J193: Nación | K193: CSF | L193: 15 | M193: 2640000000 | N193: 619650188 | O193: 2020349812 | P193: 0 | Q193: 619650188 | R193: 0 | S193: 0 | T193: 0 | U193: =+IFERROR(Q193/M193,0) -> 0.2347159803 | V193: =+IFERROR(R193/M193,0) -> 0
A194: C | B194: 2502 | C194: 1000 | D194: 27 | E194: 0 | I194: CONTRIBUCION EN LA CONSTRUCCION DE CIUDADANIA DE LA VICTIMAS DEL CONFLICTO ARMADO NACIONAL | J194: Nación | K194: CSF | L194: 11 | M194: 5000000000 | N194: 3446931823 | O194: 1553068177 | P194: 0 | Q194: 3098396349 | R194: 1513512827 | S194: 1510526597 | T194: 1508898691 | U194: 0.6196792698 | V194: 0.3027025654
A195: C | B195: 2502 | C195: 1000 | D195: 27 | E195: 0 | F195: 2502001 | I195: SERVICIO DE ADVERTENCIA Y SEGUIMIENTO A LOS RIESGOS DE VULNERACIÓN DE LOS DERECHOS HUMANOS, EL DERECHO INTERNACIONAL HUMANITARIO Y EN LOS ESCENARIOS DE PAZ | J195: Nación | K195: CSF | L195: 11 | M195: 1699633877 | N195: 698972016 | O195: 1000661861 | P195: 0 | Q195: 592406413 | R195: 375687033 | S195: 373747961 | T195: 372269487 | U195: 0.3485494264 | V195: 0.2210399769
A196: C | B196: 2502 | C196: 1000 | D196: 27 | E196: 0 | F196: 2502002 | I196: SERVICIO DE ASISTENCIA TÉCNICA PARA ATENCIÓN, ORIENTACIÓN Y ASESORÍA EN MATERIA DE DERECHOS HUMANOS, EL DERECHO INTERNACIONAL HUMANITARIO Y EN ESCENARIOS DE PAZ | J196: Nación | K196: CSF | L196: 11 | M196: 2196579406 | N196: 2196579406 | O196: 0.3 | P196: 0 | Q196: 2031662431 | R196: 969229029 | S196: 969229029 | T196: 969229029 | U196: 0.9249210045 | V196: 0.4412447036
A197: C | B197: 2502 | C197: 1000 | D197: 27 | E197: 0 | F197: 2502003 | I197: SERVICIO DE EDUCACIÓN INFORMAL EN MATERIA DE DERECHOS HUMANOS Y DERECHO INTERNACIONAL HUMANITARIO | J197: Nación | K197: CSF | L197: 11 | M197: 1103786716 | N197: 551380401 | O197: 552406315.3 | P197: 0 | Q197: 474327505 | R197: 168596765 | S197: 167549607 | T197: 167400175 | U197: 0.429727499 | V197: 0.1527439699
A198: C | B198: 2502 | C198: 1000 | D198: 27 | E198: 0 | F198: 2502003 | I198: SERVICIO DE EDUCACIÓN INFORMAL EN MATERIA DE DERECHOS HUMANOS Y DERECHO INTERNACIONAL HUMANITARIO | J198: Nación | K198: CSF | L198: 13 | M198: 3425973234 | N198: 2377755739 | O198: 1048217495 | P198: 0 | Q198: 1992686528 | R198: 752782329 | S198: 751935171 | T198: 748568422 | U198: 0.5816410089 | V198: 0.219728024
A199: C | B199: 2502 | C199: 1000 | D199: 27 | E199: 0 | F199: 2502002 | I199: SERVICIO DE ASISTENCIA TÉCNICA PARA ATENCIÓN, ORIENTACIÓN Y ASESORÍA EN MATERIA DE DERECHOS HUMANOS, EL DERECHO INTERNACIONAL HUMANITARIO Y EN ESCENARIOS DE PAZ | J199: Nación | K199: CSF | L199: 13 | M199: 6817822810 | N199: 6059696362 | O199: 758126447.7 | P199: 0 | Q199: 5595591333 | R199: 3122235294 | S199: 3105274195 | T199: 3087875729 | U199: 0.820729944 | V199: 0.4579519564
A200: C | B200: 2502 | C200: 1000 | D200: 27 | E200: 0 | F200: 2502001 | I200: SERVICIO DE ADVERTENCIA Y SEGUIMIENTO A LOS RIESGOS DE VULNERACIÓN DE LOS DERECHOS HUMANOS, EL DERECHO INTERNACIONAL HUMANITARIO Y EN LOS ESCENARIOS DE PAZ | J200: Nación | K200: CSF | L200: 13 | M200: 5275385258 | N200: 4704245137 | O200: 571140120.6 | P200: 0 | Q200: 4686926375 | R200: 2475572140 | S200: 2472503539 | T200: 2455142420 | U200: 0.8884519606 | V200: 0.4692685025
A201: C | B201: 2502 | C201: 1000 | D201: 27 | E201: 0 | I201: CONTRIBUCION EN LA CONSTRUCCION DE CIUDADANIA DE LA VICTIMAS DEL CONFLICTO ARMADO NACIONAL | J201: Nación | K201: CSF | L201: 13 | M201: 15519181301 | N201: 13141697238 | O201: 2377484063 | P201: 0 | Q201: 12275204236 | R201: 6350589763 | S201: 6329712905 | T201: 6291586571 | U201: 0.7909698326 | V201: 0.409209071
A202: C | B202: 2502 | C202: 1000 | D202: 27 | E202: 0 | F202: 2502001 | G202: 02 | I202: ADQUISICIÓN DE BIENES Y SERVICIOS - SERVICIO DE ADVERTENCIA Y SEGUIMIENTO A LOS RIESGOS DE VULNERACIÓN DE LOS DERECHOS HUMANOS, EL DERECHO INTERNACIONAL HUMANITARIO Y EN LOS ESCENARIOS DE PAZ - CONTRIBUCION EN LA CONSTRUCCION DE CIUDADANIA DE LA VI | J202: Nación | K202: CSF | L202: 11 | M202: 1699633877 | N202: 698972016 | O202: 1000661861 | P202: 0 | Q202: 592406413 | R202: 375687033 | S202: 373747961 | T202: 372269487 | U202: 0.3485494264 | V202: 0.2210399769
A203: C | B203: 2502 | C203: 1000 | D203: 27 | E203: 0 | F203: 2502002 | G203: 02 | I203: ADQUISICIÓN DE BIENES Y SERVICIOS - SERVICIO DE ASISTENCIA TÉCNICA PARA ATENCIÓN, ORIENTACIÓN Y ASESORÍA EN MATERIA DE DERECHOS HUMANOS, EL DERECHO INTERNACIONAL HUMANITARIO Y EN ESCENARIOS DE PAZ - CONTRIBUCION EN LA CONSTRUCCION DE CIUDADANIA DE | J203: Nación | K203: CSF | L203: 11 | M203: 2196579406 | N203: 2196579406 | O203: 0.3 | P203: 0 | Q203: 2031662431 | R203: 969229029 | S203: 969229029 | T203: 969229029 | U203: 0.9249210045 | V203: 0.4412447036
A204: C | B204: 2502 | C204: 1000 | D204: 27 | E204: 0 | F204: 2502003 | G204: 02 | I204: ADQUISICIÓN DE BIENES Y SERVICIOS - SERVICIO DE EDUCACIÓN INFORMAL EN MATERIA DE DERECHOS HUMANOS Y DERECHO INTERNACIONAL HUMANITARIO - CONTRIBUCION EN LA CONSTRUCCION DE CIUDADANIA DE LA VICTIMAS DEL CONFLICTO ARMADO NACIONAL | J204: Nación | K204: CSF | L204: 11 | M204: 1103786716 | N204: 551380401 | O204: 552406315.3 | P204: 0 | Q204: 474327505 | R204: 168596765 | S204: 167549607 | T204: 167400175 | U204: 0.429727499 | V204: 0.1527439699
... 56 more rows
